Cogmind - Beta 10.2 @@@ ROGUE MODE // 2021.05.01 @ 01:03:55 Player: thingamajigger Result: Destroyed by as-32262 with Assembled Heavy Rifle Performance ------------- Evolutions (0) 0 Regions Visited (4) 800 Robots Destroyed (15) 75 Value Destroyed (424) 424 Prototype IDs (23) 460 Alien Tech Used (0) 0 Bonus (300) 300 TOTAL SCORE: 2059 Bonus ------- Aligned with FarCom 300 Cogmind --------- Core Integrity 0/250 Matter 153/300 Energy 250/250 System Corruption 0% Temperature Cool (0) Movement Walking (210) Ox3 Location -9/Mines Parts ------- > --- POWER (1) -------- Ion Engine > --- PROPULSION (2) --- Aluminum Leg Aluminum Leg > --- UTILITY (2) ------ High-capacity Storage Unit High-capacity Storage Unit > --- WEAPON (2) ------- (None) > --- INVENTORY (20) --- Ion Engine Light Ion Engine Aluminum Leg Aluminum Leg Aluminum Leg Large Battery (300) Large Matter Pod (140) Signal Interpreter Weapon Shielding Medium Armor Plating Spread Laser Guided Plasma Cannon Rocket Launcher Rocket Launcher Peak State ------------ > --- POWER ------------ Ion Engine > --- PROPULSION ------- Aluminum Leg Aluminum Leg > --- UTILITY ---------- High-capacity Storage Unit High-capacity Storage Unit > --- WEAPON ----------- Rocket Launcher Field Lobotomy Kit > --- INVENTORY -------- Ion Engine Light Ion Engine Aluminum Leg Aluminum Leg Aluminum Leg Large Battery Large Matter Pod Weapon Shielding Rocket Launcher Rocket Launcher [Rating: 18] Favorites ----------- Power Ion Engine Engine Ion Engine Propulsion Aluminum Leg Leg Aluminum Leg Utility High-capacity Storage Unit Storage High-capacity Storage Unit Processor Visual Processing Unit Weapon Rocket Launcher Energy Gun EM Pulse Gun Energy Cannon Guided Plasma Cannon Launcher Rocket Launcher Special Weapon Field Lobotomy Kit Build | -11 -10 -10 -10 -9 ------- Run | Scr Mat Min Exi Min Slots Evolved . | . . . . . Power . | . . . . . Propulsion . | . . . . . Utility . | . . . . . Weapon . | . . . . . Parts Attached 28 | 9 4 5 6 4 Power 3 | 2 . 1 . . Engine 3 | 2 . 1 . . Core . | . . . . . Reactor . | . . . . . Propulsion 4 | 2 . 1 1 . Treads . | . . . . . Leg 4 | 2 . 1 1 . Wheel . | . . . . . Hover . | . . . . . Flight . | . . . . . Utility 8 | 2 4 . 2 . Device . | . . . . . Storage 7 | 2 3 . 2 . Processor 1 | . 1 . . . Hackware . | . . . . . Protection . | . . . . . Artifact . | . . . . . Weapon 13 | 3 . 3 3 4 Energy Gun 6 | 3 . 1 . 2 Energy Cannon 1 | . . . . 1 Ballistic Gun . | . . . . . Ballistic Cannon . | . . . . . Launcher 3 | . . 2 . 1 Special Weapon 3 | . . . 3 . Impact Weapon . | . . . . . Slashing Weapon . | . . . . . Piercing Weapon . | . . . . . Special Melee Weapon . | . . . . . Unidentified Prototypes . | . . . . . Parts Lost 8 | . . 6 . 2 Power 1 | . . 1 . . Propulsion 1 | . . 1 . . Utility . | . . . . . Weapon 6 | . . 4 . 2 Highest Loss Streak 6 | . . 6 . 2 Average Slot Usage (%) 90 | . 99 89 87 95 Engine 13 | . 14 13 14 14 Leg 27 | . 28 27 28 28 Storage 27 | . 23 28 28 28 Energy Gun 6 | . 28 11 . 16 Launcher 10 | . . 7 14 6 Special Weapon 1 | . . . 2 . Naked Turns . | . . . . . Heaviest Build 83 | 17 41 41 81 83 Greatest Support 20 | 20 20 20 20 20 Greatest Overweight (x) 4 | 2 2 2 4 4 Average Overweight (x) 2 | . . 1 2 3 Largest Inventory Capacity 20 | 8 16 16 20 20 Average Capacity 16 | 6 8 16 18 20 Most Carried 14 | 2 7 14 12 14 Average Carried 9 | 1 3 9 10 12 Final Capacity 20 | 8 16 16 20 20 Final Carried 14 | 2 6 9 11 14 Class Distribution -------------------- 55% | Hauler-Mutant 44% | Mutant Dominant Class ---------------- Mutant | -10/Materials Mutant | -10/Mines Hauler-Mutant | -10/Exiles Hauler-Mutant | -9/Mines Resources | -11 -10 -10 -10 -9 ----------- Run | Scr Mat Min Exi Min Matter Collected 493 | 290 . 120 10 73 Remotely . | . . . . . Salvage Created 504 | 100 53 170 . 181 Parts 22 | 5 7 7 . 3 Haulers Intercepted . | . . . . . Recyclers Shooed . | . . . . . Parts Field Recycled . | . . . . . Retrieved Matter . | . . . . . Parts Self-Destructed . | . . . . . Prevented . | . . . . . Kills | -11 -10 -10 -10 -9 ------- Run | Scr Mat Min Exi Min Combat Hostiles Destroyed 16 | . . 4 . 12 Guns 2 | . . 2 . . AOE 14 | . . 2 . 12 Classes Destroyed 8 | 2 1 2 . 3 Worker 2 | . . 2 . . Tunneler 1 | 1 . . . . Recycler 1 | 1 . . . . Watcher 2 | . 2 . . . Grunt 6 | . . 4 . 2 Duelist 1 | . . . . 1 Sentry 2 | . . . . 2 Assembled 7 | . . . . 7 Best Kill Streak 7 | 2 1 4 . 7 Combat Bots Only 7 | . . 2 . 7 Max Kills in Single Turn 3 | 1 1 2 . 3 Gunslinging . | . . . . . Exploded 3 | . . 1 . 3 Melee . | . . . . . Uniques/NPCs Destroyed . | . . . . . Combat | -11 -10 -10 -10 -9 -------- Run | Scr Mat Min Exi Min Damage Taken 891 | 31 . 507 . 353 Core 257 | . . 121 . 136 Absorbed by Shields . | . . . . . Core Remaining (%) 100 | 100 . . . . Volleys Fired 38 | 3 4 14 . 17 Largest 2 | 2 2 2 . 1 Hottest 120 | 80 80 90 . 120 Shots Fired 54 | 6 8 23 . 17 Gun 32 | 6 8 18 . . Cannon 5 | . . . . 5 Launcher 17 | . . 5 . 12 Special . | . . . . . Kinetic . | . . . . . Thermal 11 | . . 6 . 5 Explosive 17 | . . 5 . 12 Electromagnetic 26 | 6 8 12 . . Robot Hit Streak 12 | 2 3 6 . 12 Robot Miss Streak 3 | 1 3 1 . 2 Penetration Max . | . . . . . Secondary Targets . | . . . . . Shots Hit Robots 34 | 4 3 20 . 7 Core Hits 43 | 3 2 11 . 27 Critical Hits . | . . . . . Critical Kills . | . . . . . Critical Parts Destroyed . | . . . . . Melee Attacks . | . . . . . Impact . | . . . . . Slashing . | . . . . . Piercing . | . . . . . Sneak Attacks . | . . . . . Combat Hostiles . | . . . . . Follow-up Attacks . | . . . . . Damage Inflicted 1604 | 118 72 575 . 839 Guns 353 | 55 72 226 . . Cannons 142 | . . . . 142 Explosions 1099 | 63 . 349 . 687 Melee . | . . . . . Ramming 10 | . . . . 10 Kinetic . | . . . . . Thermal 347 | 63 . 142 . 142 Explosive 956 | . . 269 . 687 Electromagnetic 291 | 55 72 164 . . Impact . | . . . . . Slashing . | . . . . . Piercing . | . . . . . Highest Corruption . | . . . . . Average Corruption . | . . . . . Corruption Purged . | . . . . . Overload Shots . | . . . . . Overflow Damage 101 | . . 71 . 30 Projectiles 27 | . . . . 27 Explosions 74 | . . 71 . 3 Melee . | . . . . . Knockbacks . | . . . . . Impact . | . . . . . Kinetic . | . . . . . Secondary . | . . . . . Self-Inflicted Damage 455 | 31 . 281 . 143 Shots 13 | 1 . 6 . 6 Rammed 1 | . . . . 1 Targets Rammed 1 | . . . . 1 Kicked . | . . . . . Crushed . | . . . . . Highest Temperature 320 | 36 36 237 . 320 Average Temperature 120 | 20 16 114 . 182 Received Heat Transfer 188 | . . 123 . 65 Siege Activations . | . . . . . Robots Corrupted . | . . . . . Combat Hostiles . | . . . . . Parts Fried . | . . . . . Impact Corruptions . | . . . . . Robots Melted . | . . . . . Combat Hostiles . | . . . . . Parts Melted 3 | . . . . 3 Heat Transferred 705 | 100 . 285 . 320 Parts Sabotaged . | . . . . . Parts Stolen . | . . . . . Parts Stripped . | . . . . . Power Chain Reactions 2 | 1 . 1 . . Missiles Intercepted . | . . . . . Alert | -11 -10 -10 -10 -9 ------- Run | Scr Mat Min Exi Min Peak Influence 110 | 10 80 81 . 110 Initial 31 | . 6 31 . . Average 59 | 3 41 74 . 89 Maximum Alert Level . | . . . . . Low Security (%) 100 | 100 100 100 . 100 Level 1 . | . . . . . Level 2 . | . . . . . Level 3 . | . . . . . Level 4 . | . . . . . Level 5 . | . . . . . High Security . | . . . . . Max Security . | . . . . . Squads Dispatched . | . . . . . Investigation . | . . . . . Extermination . | . . . . . Reinforcement . | . . . . . Assault . | . . . . . Garrison . | . . . . . Intercept . | . . . . . Construction Impeded . | . . . . . Haulers Reinforced . | . . . . . Stealth | -11 -10 -10 -10 -9 --------- Run | Scr Mat Min Exi Min Distress Signals . | . . . . . Communications Jammed . | . . . . . Distress Signals . | . . . . . Times Spotted 22 | . 2 4 . 16 Peak Tracking Total 8 | . 1 2 . 8 Tactical Retreats . | . . . . . Traps | -11 -10 -10 -10 -9 ------- Run | Scr Mat Min Exi Min Traps Triggered . | . . . . . Indirectly . | . . . . . Trap Hack Attempts . | . . . . . Triggered . | . . . . . Disarmed . | . . . . . Reprogrammed . | . . . . . Reused . | . . . . . Traps Extracted . | . . . . . Installed . | . . . . . Triggered . | . . . . . Machines | -11 -10 -10 -10 -9 ---------- Run | Scr Mat Min Exi Min Machines Disabled 3 | . 1 . . 2 Max in Single Turn 1 | . 1 . . 1 Machines Sabotaged . | . . . . . Garrisons Compromised . | . . . . . Overloaded Fab Kills . | . . . . . Fab Network Shutdowns . | . . . . . Hacking | -11 -10 -10 -10 -9 --------- Run | Scr Mat Min Exi Min Machines Accessed 2 | . . . 2 . Terminals . | . . . . . Fabricators . | . . . . . Repair Stations . | . . . . . Recycling Units . | . . . . . Scanalyzers . | . . . . . Garrison Access . | . . . . . Total Hacks 2 | . . . 2 . Successful 2 | . . . 2 . Failed . | . . . . . Catastrophic . | . . . . . Database Lockouts . | . . . . . Manual 1 | . . . 1 . Terminals . | . . . . . Fabricators . | . . . . . Repair Stations . | . . . . . Recycling Units . | . . . . . Scanalyzers . | . . . . . Garrison Access . | . . . . . Terminal Hacks 2 | . . . 2 . Record 1 | . . . 1 . EX-Prototype ID Bank 1 | . . . 1 . Fabricator Hacks . | . . . . . Repair Station Hacks . | . . . . . Recycling Unit Hacks . | . . . . . Scanalyzer . | . . . . . Garrison Access Hacks . | . . . . . Unauthorized Hacks . | . . . . . Terminals . | . . . . . Fabricators . | . . . . . Repair Stations . | . . . . . Recycling Units . | . . . . . Scanalyzers . | . . . . . Garrison Access . | . . . . . Data Cores Recovered . | . . . . . Used . | . . . . . Hacking Detections . | . . . . . Full Trace Events . | . . . . . Feedback Events . | . . . . . Feedback Blocked . | . . . . . Robot Schematics Acquired . | . . . . . Robots Built . | . . . . . Matter . | . . . . . Time . | . . . . . Total Robot Build Rating . | . . . . . Part Schematics Acquired . | . . . . . Parts Built . | . . . . . Matter . | . . . . . Time . | . . . . . Total Part Build Rating . | . . . . . Parts Repaired . | . . . . . Time . | . . . . . Parts Recycled . | . . . . . Recycled Matter . | . . . . . Retrieved Matter . | . . . . . Retrieved Components . | . . . . . Parts Scanalyzed . | . . . . . Part Schematics Acquired . | . . . . . Parts Damaged . | . . . . . Bothacking | -11 -10 -10 -10 -9 ------------ Run | Scr Mat Min Exi Min Used RIF Installer . | . . . . . Robots Hacked . | . . . . . Non-combat . | . . . . . Combat . | . . . . . Robot Hacks Applied . | . . . . . Relay Couplers Released . | . . . . . Robots Rewired . | . . . . . Allies Hacked . | . . . . . Hacks Repelled . | . . . . . Allies | -11 -10 -10 -10 -9 -------- Run | Scr Mat Min Exi Min Total Allies 2 | . . 2 . . Largest Group 2 | . . 2 2 . Highest-Rated Group 39 | . . 39 39 . Highest-Rated Ally 31 | . . 31 31 . Total Orders . | . . . . . Ally Attacks . | . . . . . Total Damage . | . . . . . Kills . | . . . . . Allies Corrupted . | . . . . . Allies Melted . | . . . . . Intel | -11 -10 -10 -10 -9 ------- Run | Scr Mat Min Exi Min Robot Analysis Total . | . . . . . Derelict Logs Recovered . | . . . . . Drone Launches . | . . . . . Drone Recoveries . | . . . . . Exploration | -11 -10 -10 -10 -9 ------------- Run | Scr Mat Min Exi Min Turns Passed 1973 | 86 235 248 1228 176 Spaces Moved 932 | 55 115 110 590 62 Core 12 | 12 . . . . Treads . | . . . . . Legs 920 | 43 115 110 590 62 Wheels . | . . . . . Hover . | . . . . . Flight . | . . . . . Fastest Speed 50 | 50 120 150 180 210 Average Speed 188 | 116 130 179 205 211 Slowest Speed 240 | 150 180 180 240 240 Overloaded Moves . | . . . . . Propulsion Burnouts . | . . . . . Robots Hopped . | . . . . . Cave-ins Triggered . | . . . . . Exploration Rate (%) 27 | 4 29 16 71 17 Regions Visited 4 Branch Regions 3 Pre-discovered Areas 2 | . . 1 1 . Known Exits Taken . | . . . . . Unknown Exits Taken 4 | 1 1 1 1 . Scrap Searched 2 | . . 1 . 1 Spaces Dug 3 | . . . . 3 Terrain Destroyed 139 | 6 . 38 . 95 Melee . | . . . . . Projectile 1 | . . . . 1 AOE 138 | 6 . 38 . 94 Terrain Rammed . | . . . . . Walls Destroyed . | . . . . . Machines Disabled . | . . . . . Actions | -11 -10 -10 -10 -9 --------- Run | Scr Mat Min Exi Min Total 1093 | 66 194 138 607 88 Wait 67 | . 63 2 2 . Move 928 | 54 114 109 589 62 Hop . | . . . . . Pick Up 17 | . 4 8 3 2 Fast Attach 11 | 7 2 . . 2 Attach 11 | . 1 5 4 1 Detach 9 | . 3 . 4 2 Swap 6 | 2 1 . 2 1 Drop 5 | . 2 . 3 . Fire 38 | 3 4 14 . 17 Melee . | . . . . . Ram . | . . . . . Kick 1 | . . . . 1 Crush . | . . . . . Escape Stasis . | . . . . . Rewire . | . . . . . Trap . | . . . . . Miscellaneous . | . . . . . Route ------- -11/Scrapyard -10/Materials -10/Mines (discovered 2 exits: [*Mat] / *Exi) -10/Exiles -9/Mines History --------- Turn | Location | Event 14 | -11/Scrapyard | Discovered new exit (range 14) 87 | -11/Scrapyard | Entered Materials 271 | -10/Materials | Discovered new exit (range 9) 315 | -10/Materials | Build established: Mutant 322 | -10/Materials | Entered Mines 323 | -10/Mines | Learned location of Storage (-7) 427 | -10/Mines | Discovered new exit (range 8) 468 | -10/Mines | Lost 6 parts (1p1n4w) 561 | -10/Mines | Deemed a non-threat by the Exiles lab entrance 563 | -10/Mines | Discovered new exit (range 5) 570 | -10/Mines | Entered Exiles 570 | -10/Exiles | Accompanied by 2 allies 600 | -10/Exiles | Led the pair of lost Derelicts to a safe place 628 | -10/Exiles | Met 8R-AWN 671 | -10/Exiles | Met EX-HEX 793 | -10/Exiles | Met EX-DEC 827 | -10/Exiles | Learned location of Zion (-7) 1041 | -10/Exiles | Met EX-BIN 1070 | -10/Exiles | Aligned with FarCom system 1072 | -10/Exiles | Given EX-Vault access code 1123 | -10/Exiles | Opened EX-Vault 1135 | -10/Exiles | Found Field Lobotomy Kit 1184 | -10/Exiles | Warned to stay clear of 0b10 Research branches 1194 | -10/Exiles | Build established: Hauler-Mutant 1323 | -10/Exiles | Discovered new exit (range 11) 1594 | -10/Exiles | Found Gui. Plasma Cannon 1798 | -10/Exiles | Left Exiles lab with Gui. Plasma Cannon 1798 | -10/Exiles | Entered Mines 1832 | -9/Mines | Core integrity fell below 50% 1838 | -9/Mines | Core integrity fell below 20% 1943 | -9/Mines | Assembled infested the area 1948 | -9/Mines | Assisted by a Guerilla fighting off Assembled 1974 | -9/Mines | Destroyed by as-32262 with Assembled Heavy Rifle Last Messages --------------- 01916_ Found 17 Matter. 01916_ Found Signal Interpreter. 01916_ Found Med. Armor Plating. 01916_ Found Plasma Cutter. 01916_ Found 31 Matter. 01917_ Acquired 31 matter. 01921_ Acquired Signal Interpreter. 01922_ Acquired 17 matter. 01930_ Acquired Med. Armor Plating. 01943_ ALERT: Infestation in the mines, dispatching Demolisher response squad. 01965_ Beam Rifle destroyed. 01966_ as-34295 destroyed. 01966_ as-87684 destroyed. 01968_ as-26915 destroyed. 01970_ as-08279 destroyed. 01972_ as-60017 destroyed. 01972_ Rocket Launcher destroyed. 01972_ Destroyed Rocket Launcher. 01972_ as-42233 destroyed. Map ----- +----------------------------------------------------+ | ????????????????????????????????????????????? | | ????????????????????????????????????????????? | | ????????????????????????????????????????????? | | ????????????????????????????????????????????? | | ????????????????????????????????????????????? | | ????????????????????????????????????????????? | | ????????????????????????????????????????????? | | ?????????????????????????#??????????????????? | | ????????????????????????? ??????????????????? | | ????????????????????????? ??????????????????? | | ????????????????????????? ??????????????????? | | ????????????????????????? ??????????????????? | | ????????????????????????# #?????????????????? | | ????????????????????????# #?????????????????? | | ????????????????????????# #?????????????????? | | ????????????????????????# #?????????????????? | | ????????????????????????# #?????????????????? | | ???????????????#####????# #?????????????????? | | ???????????????? ##### #?????????????????? | | ???????????????## ## #?????????????????? | | ??????????????## a#a#?????????????????? | | ??????????????# aaaa #?????????????????? | | ??????????????# a###?????????????????? | | ??????????????# ##???????????????????? | | ???????????????# #?????????? ##??????? | | ???????????????# @ ###??????? ###????? | | ???????????????## ##????? ##???? | | ????????????????## # ##??? ????? | | ??????????????### ### ### #???????? | | ??????????????# # ### #????????? | | ?????????????## ###### #????????? | | ?????????##### = #???????? | | ????????##"! " # ## #???????? | | ????????# ! ###### ##?? ##???????? | | ????????# # ##?# #????####????????? | | ????????# ## #?# #????????????????? | | ????????# #% ### #????????????????? | | ????????# = # #???????????????? | | ????????# ## #???????????????? | | ????????# # ##???????????????? | | ????????# ### ##????????????????? | | ????????# ##?######?????????????????? | | ????????# #?????????????????????????? | | ????????###########?????????????????????????? | | ????????????????????????????????????????????? | | ????????????????????????????????????????????? | | ????????????????????????????????????????????? | | | | | | | +----------------------------------------------------+ Best States ------------- Heat Dissipation 25 Energy Generation 10 Energy Capacity 250 Matter Stores 300 Matter Capacity 300 Sight Range 18 Terrain Scan Density 10 Evasion (%) 40 Item Schematics ----------------- None Robot Schematics ------------------ None Fabricated ------------ Nothing Alien Tech Used ----------------- None Achievements -------------- None Challenges ------------ None Game ------ Seed SlugCouplerExoskeleton Manual? 0 Play Time 00:11:20 Cumulative 44.9 hours Start 2021.05.01 @ 00:54:00 End 2021.05.01 @ 01:03:55 Sessions 1 Manual Loads 0 Difficulty Rogue Special Mode None Game No. 97 Rogue 86 Adventurer 4 Explorer 7 Win Type - Total 2 Types 2/0/0/0/0/0/0/0/0 Lore% 38 Gallery% 62 Achievement% 40 Wizard Run 0 Options --------- ASCII 0 Keyboard 1 Movement Numpad Keybinds 0 Fullscreen 1 Font 18/SmallcapsGlow Map View 76x50 Tactical HUD 1 Map Filters NONE Filters NONE Steam 1 RUN: 506b66ea-f20a-487e-afb4-8088fc909425